bitfinex-derivatives/quotes_ETHF0:USTF0_20250902
["timestamp","ask_amount","ask_price","bid_price","bid_amount"]
[1756780478541,0.731,4338.1,4338.0,0.3162]
[1756780478737,0.312,4338.1,4338.0,0.3162]
[1756780479448,0.5209,4338.1,4338.0,0.3162]
[1756780479745,0.731,4338.1,4338.0,0.3162]
[1756780480237,0.731,4338.1,4338.0,0.0812]
[1756780480438,0.731,4338.1,4338.0,0.3162]
[1756780482248,0.731,4338.1,4338.0,0.235]
[1756780482448,0.731,4338.1,4337.9,40.8]
[1756780482449,0.419,4338.1,4337.9,40.8]
[1756780482646,0.1212,4337.5,4337.3,3.2078]
[1756780482848,0.6982,4337.4,4337.3,3.2078]
[1756780483038,0.6982,4337.4,4337.3,3.4428]
[1756780483237,0.6982,4337.4,4337.3,44.2428]
[1756780483437,0.6982,4337.4,4337.3,3.4428]
[1756780484242,0.6982,4337.4,4337.3,0.235]
[1756780485948,0.90250142,4337.4,4337.3,0.235]
[1756780486745,0.90243789,4337.4,4337.3,0.235]
[1756780487544,0.60163789,4337.4,4337.0,3.4428]
[1756780487743,0.6982,4337.1,4337.0,3.2078]
[1756780487945,0.60163789,4337.1,4336.7,40.8]
[1756780488144,0.6982,4336.9,4336.8,0.235]
[1756780488354,0.90243789,4336.9,4336.8,0.3144]
[1756780492353,0.90197513,4336.9,4336.8,0.3144]
[1756780493054,0.3008,4337.2,4336.8,0.3393]
[1756780493254,0.50455022,4337.1,4337.0,0.1043]
[1756780493453,0.50455022,4337.1,4337.0,0.3393]
[1756780493752,0.50455022,4337.1,4337.0,0.3144]
[1756780494145,0.70725022,4337.1,4337.0,0.3144]
[1756780494345,0.90195022,4337.1,4337.0,0.3144]
[1756780494546,0.90195022,4337.1,4337.0,0.2746]
[1756780494749,0.422,4337.0,4336.7,40.8]
[1756780494953,0.6982,4336.8,4336.7,40.8]
[1756780495154,0.90195022,4336.8,4336.7,41.035]
[1756780497147,0.90195022,4336.8,4336.7,40.8]
[1756780497550,0.90195022,4336.8,4336.7,41.035]
[1756780498054,0.90195022,4336.8,4336.7,40.8]
[1756780498348,0.60115022,4336.8,4336.5,0.235]
[1756780498556,0.95368,4336.9,4336.5,0.235]
[1756780498557,0.6982,4336.6,4336.5,0.235]
[1756780498759,0.90195022,4336.6,4336.5,0.235]
[1756780498961,0.90195022,4336.6,4336.5,41.035]
[1756780499256,0.90826139,4336.6,4336.5,41.035]
[1756780501353,0.90826139,4336.6,4336.5,0.235]
[1756780501552,0.6982,4336.6,4336.5,0.235]
[1756780501856,0.90822594,4336.6,4336.5,0.235]
[1756780506159,0.8194,4336.5,4336.4,0.235]
[1756780506353,1.02942594,4336.5,4336.4,0.235]
[1756780506861,0.72862594,4336.5,4336.4,0.235]
[1756780507462,1.02942594,4336.5,4336.4,0.235]
[1756780508768,1.02942594,4336.5,4336.4,0.2755]
[1756780508972,1.02942594,4336.5,4336.4,0.316]
[1756780509174,1.02942594,4336.5,4336.4,0.081]
[1756780509368,1.02942594,4336.5,4336.4,0.316]
[1756780510473,0.21002594,4336.5,4336.4,1.29498]
[1756780510773,0.21002594,4336.5,4336.4,5.29498]
[1756780511673,0.21002594,4336.5,4336.4,5.52558]
[1756780512177,0.286,4337.0,4336.4,5.50028]
[1756780512375,0.19976593,4336.9,4336.8,0.0816]
[1756780512576,0.19976593,4336.9,4336.8,3.5499]
[1756780512977,0.48576593,4336.9,4336.8,4.50358]
[1756780514279,0.48576593,4336.9,4336.8,45.30358]
[1756780515777,0.48594213,4336.9,4336.8,45.30358]
[1756780516474,0.48594213,4336.9,4336.8,44.3244]
[1756780516783,0.48594213,4336.9,4336.8,44.0894]
[1756780516982,0.48594213,4336.9,4336.8,41.035]
[1756780517480,0.88604213,4336.9,4336.8,0.235]
[1756780517882,0.88604213,4336.9,4336.8,41.035]
[1756780518683,0.6861,4336.2,4336.1,3.2486]
[1756780518877,0.1988,4335.6,4335.5,3.2078]
[1756780519078,0.68474213,4335.6,4335.5,3.5244]
[1756780519277,0.68474213,4335.6,4335.5,44.3244]
[1756780519788,0.19994213,4335.6,4335.5,44.3499]
[1756780520083,0.19994213,4335.6,4335.5,48.3499]
[1756780520484,0.48594213,4335.6,4335.5,44.3499]
[1756780521090,0.19994213,4335.6,4335.5,44.3499]
[1756780521587,0.48594213,4335.6,4335.5,44.3499]
[1756780522085,0.48594213,4335.6,4335.5,44.3244]
[1756780522786,0.48592835,4335.6,4335.5,44.3244]
[1756780523182,0.48585211,4335.6,4335.5,44.3244]
[1756780524287,0.48585211,4335.6,4335.5,44.3499]
[1756780526183,0.48571468,4335.6,4335.5,44.3499]
[1756780527496,0.48571468,4335.6,4335.5,45.16148162]
[1756780527790,0.48571468,4335.6,4335.5,44.2836]
[1756780530285,0.48571468,4335.6,4335.5,44.0078]
[1756780530490,0.48571468,4335.6,4335.5,44.2428]
[1756780532488,0.48571468,4335.6,4335.5,44.2683]
[1756780533094,0.48263286,4335.6,4335.5,44.2683]
[1756780533395,0.48263286,4335.6,4335.5,44.2428]
[1756780533894,0.48263286,4335.6,4335.5,44.2683]
[1756780536895,0.48263286,4335.6,4335.5,44.2428]
[1756780537596,0.48263286,4335.6,4335.5,44.0078]
[1756780537796,0.48263286,4335.6,4335.5,44.2428]
[1756780540495,0.48254449,4335.6,4335.5,44.2428]
[1756780543005,0.48254449,4335.6,4335.5,44.2683]
[1756780543299,0.19654449,4335.6,4335.5,49.31053162]
[1756780543487,0.3139,4337.3,4336.8,0.0816]
[1756780543686,0.5178,4337.3,4337.2,0.89318162]
[1756780543890,0.728,4337.3,4337.2,3.2894]
[1756780544594,0.3139,4337.3,4337.2,4.10098162]
[1756780544800,0.3139,4337.3,4337.2,4.12648162]
[1756780545604,3.5217,4338.0,4337.9,0.0816]
[1756780545795,3.5217,4338.0,4337.9,1.12818162]
[1756780546807,3.7256,4338.0,4337.9,1.12818162]
[1756780547201,0.5178,4338.0,4337.9,1.12818162]
[1756780548199,0.3139,4338.0,4337.9,1.15368162]
[1756780548602,0.3139,4338.4,4337.9,1.15368162]
[1756780548797,0.5178,4338.9,4338.8,0.0816]
[1756780549003,0.3139,4338.9,4338.8,1.15368162]
[1756780549198,0.3139,4338.9,4338.8,41.95368162]
[1756780549504,3.2078,4339.2,4338.8,41.92818162]
[1756780549702,0.3139,4339.1,4339.0,0.1071]
[1756780549903,0.3139,4339.1,4339.0,1.15368162]
[1756780550511,0.3139,4339.1,4339.0,1.12818162]
[1756780551007,0.728,4338.9,4338.8,44.0078]
[1756780551210,0.728,4338.9,4338.8,44.2428]
[1756780552198,0.728,4338.9,4338.8,45.05438162]
[1756780553706,0.81158162,4339.6,4338.8,45.07988162]
[1756780553906,0.5291,4339.5,4339.4,0.0408]
[1756780554414,0.843,4339.5,4339.4,0.0408]
[1756780556002,0.843,4339.5,4339.3,0.235]
[1756780556911,0.843,4339.5,4339.4,0.0408]
[1756780561310,0.3139,4339.4,4339.3,3.4428]
[1756780561510,0.3139,4339.9,4339.4,0.0257]
[1756780561708,0.3139,4339.9,4339.8,4.12748162]
[1756780561905,0.3139,4339.9,4339.8,4.36248162]
[1756780562106,0.3139,4339.9,4339.8,4.33678162]
[1756780562508,0.1,4340.2,4339.8,4.36248162]
[1756780562710,0.1,4340.2,4340.1,0.91968162]
[1756780563016,0.1,4340.2,4340.1,41.95468162]
[1756780563408,0.4139,4340.2,4340.1,41.95468162]
[1756780563612,0.1,4340.2,4340.1,41.95468162]
[1756780563917,0.4139,4340.2,4340.1,41.95468162]
[1756780564902,0.1,4340.2,4340.1,41.95468162]
[1756780565103,0.1,4340.2,4340.1,45.95468162]
[1756780565813,0.1,4340.2,4340.1,45.71968162]
[1756780566014,0.1,4340.2,4340.1,45.95468162]
[1756780566510,0.4139,4340.2,4340.1,41.71968162]
[1756780566716,0.4139,4340.2,4340.1,41.95468162]
[1756780566916,0.4139,4340.2,4340.1,41.92898162]
[1756780567115,0.4139,4340.2,4340.1,41.95468162]
[1756780567705,0.1,4340.2,4340.1,45.95468162]
[1756780568420,0.5178,4341.0,4340.9,0.0824]
[1756780568719,0.843,4341.0,4340.9,1.12898162]
[1756780568908,0.843,4341.0,4340.6,4.01938162]
[1756780569216,0.4141,4340.8,4340.6,4.01938162]
[1756780569409,0.4141,4340.8,4340.7,0.235]
[1756780569811,0.4141,4340.8,4340.7,41.035]
[1756780570007,0.728,4340.8,4340.7,40.8]
[1756780570217,0.728,4340.8,4340.7,41.035]
[1756780571114,0.5178,4340.8,4340.7,41.035]
[1756780571325,0.3139,4340.8,4340.7,41.035]
[1756780571716,0.3139,4340.8,4340.7,40.8]
[1756780571909,0.3139,4340.8,4340.7,41.035]
[1756780572108,0.3139,4340.8,4340.7,40.8]
[1756780572311,0.3139,4340.8,4340.7,41.035]
[1756780572617,0.3139,4340.8,4340.7,41.0596]
[1756780574021,0.3139,4340.8,4340.7,41.035]
[1756780575617,0.2915,4341.5,4341.4,0.0788]
[1756780575917,0.4951,4342.2,4342.1,0.0788]
[1756780576114,0.6919,4342.2,4342.1,1.12538162]
[1756780576514,0.6919,4342.2,4342.1,0.89038162]
[1756780576715,0.6919,4342.2,4342.1,1.12538162]
[1756780578316,0.2915,4342.2,4342.1,1.12538162]
[1756780578620,0.4951,4342.2,4342.1,1.12538162]
[1756780580115,0.89520345,4342.3,4342.2,0.1034]
[1756780580520,0.89520345,4342.3,4342.2,0.0788]
[1756780580718,0.89520345,4342.3,4342.2,0.1034]
[1756780580917,1.09880345,4342.3,4342.2,0.0788]
[1756780581119,1.09880345,4342.3,4342.2,0.3138]
[1756780581522,1.29560345,4342.3,4342.2,41.1138]
[1756780583426,0.8111,4342.0,4341.9,4.01938162]
[1756780583725,0.8111,4342.0,4341.9,4.29378162]
[1756780583925,0.6919,4342.0,4341.9,45.13318162]
[1756780584417,0.8111,4342.0,4341.9,44.0866]
[1756780584618,0.8111,4342.0,4341.9,45.13318162]
[1756780586627,0.8111,4342.0,4341.9,45.05438162]
[1756780587620,0.8111,4342.0,4341.9,3.4428]
[1756780587826,0.8111,4342.0,4341.9,3.4822]
[1756780588228,0.8111,4342.0,4341.9,3.5216]
[1756780589224,0.6919,4342.0,4341.9,4.47415944]
[1756780589426,0.4951,4342.0,4341.9,3.5216]
[1756780590925,0.8111,4342.0,4341.7,0.235]
[1756780591228,0.6919,4341.8,4341.7,0.3138]
[1756780591428,1.26464891,4341.8,4341.7,0.3138]
[1756780592226,1.26464891,4341.8,4341.7,0.2744]
[1756780592419,1.26464891,4341.8,4341.7,0.3138]
[1756780592619,0.86424891,4341.8,4341.7,0.3384]
[1756780592822,0.2915,4341.8,4341.7,0.3384]
[1756780593024,0.87651589,4342.8,4342.7,0.41446]
[1756780593220,1.65670992,4344.0,4342.7,0.95255944]
[1756780593424,0.2915,4344.0,4343.8,3.19758775]
[1756780593628,0.2915,4344.5,4343.9,41.26520999]
[1756780593836,0.2915,4345.2,4344.4,3.19758775]
[1756780594038,0.2915,4345.1,4344.8,3.2078]
[1756780594227,2.06474384,4346.8,4344.8,3.2078]
[1756780594228,3.03507776,4346.9,4346.0,0.0984]
[1756780594430,0.2915,4347.7,4346.8,47.1951755]
[1756780594739,0.12318567,4349.0,4347.6,6.69668775]
[1756780594943,0.12318567,4349.0,4348.9,3.19758775]
[1756780595533,0.1192,4349.5,4348.9,6.40538775]
[1756780595842,0.249,4349.4,4348.9,6.40538775]
[1756780596036,0.1192,4349.5,4348.9,6.40538775]
[1756780596239,0.3682,4349.5,4348.9,3.19758775]
[1756780596445,0.1192,4349.5,4348.9,3.19758775]
[1756780596634,0.2915,4349.3,4348.6,40.8]
[1756780596834,0.2915,4348.8,4347.8,3.48888775]
[1756780597036,0.2915,4348.6,4347.9,0.33831568]
[1756780597236,0.2915,4348.4,4348.0,40.8]
[1756780597435,0.4107,4348.5,4348.0,40.8]
[1756780597737,0.1192,4348.5,4347.8,3.19758775]
[1756780597935,0.34918,4348.5,4347.8,3.19758775]
[1756780598137,0.2915,4348.3,4347.8,3.19758775]
[1756780598341,0.2915,4348.4,4347.8,3.19758775]
[1756780599039,0.2915,4348.3,4347.9,0.35482177]
[1756780599240,3.3078,4350.2,4348.5,0.1192]
[1756780599432,0.3915,4350.2,4349.7,0.2913]
[1756780599639,0.2915,4350.1,4349.8,0.2913]
[1756780599836,0.1,4350.2,4349.4,3.2078]
[1756780600042,0.1192,4350.0,4349.4,3.2078]
[1756780600237,0.2915,4349.9,4349.4,3.2078]
[1756780600439,0.2915,4349.9,4348.9,3.2078]
[1756780600742,0.1192,4349.5,4348.3,3.2078]
[1756780600941,0.2915,4349.3,4347.8,3.2078]
[1756780601143,0.2993,4349.3,4347.8,3.2078]
[1756780601337,0.2993,4349.3,4346.6,0.41408]
[1756780601338,0.1241,4348.5,4347.2,3.2078]
[1756780601642,0.2993,4348.5,4347.7,3.5101]
[1756780601841,0.251,4348.6,4347.7,3.5101]
[1756780602049,0.1241,4348.5,4347.7,3.2078]
[1756780602545,0.2993,4348.4,4347.7,3.2078]
[1756780602744,0.1241,4348.5,4347.7,3.2078]
[1756780602943,0.2993,4348.4,4347.7,3.2078]
[1756780603140,0.1241,4348.5,4347.7,3.2078]
[1756780603340,0.1241,4348.5,4347.1,0.3023]
[1756780603341,3.2078,4348.4,4347.1,3.5101]
[1756780603642,3.2078,4347.8,4347.1,3.2078]
[1756780603950,0.1241,4347.5,4347.1,3.2078]
[1756780604142,0.2993,4347.4,4347.1,3.2078]
[1756780604342,0.1241,4347.5,4347.1,3.2078]
[1756780604544,0.2993,4347.4,4347.1,3.2078]
[1756780605245,4.1241,4347.5,4347.1,3.2078]
[1756780605548,0.2993,4347.4,4347.1,3.2078]
[1756780605941,4.1241,4347.5,4346.3,0.3023]
[1756780605942,3.2078,4347.3,4346.3,3.2078]
[1756780606336,0.2993,4347.2,4346.3,3.2078]
[1756780606544,0.1241,4347.0,4346.3,3.2078]
[1756780607039,0.2993,4346.9,4346.3,3.2078]
[1756780607344,0.2993,4346.6,4345.7,3.2078]
[1756780607547,3.2078,4346.7,4345.7,3.2078]
[1756780607548,0.2993,4346.4,4345.7,3.2078]
[1756780608141,0.1241,4346.5,4345.7,3.2078]
[1756780608342,0.2993,4346.4,4345.7,3.2078]
[1756780608652,0.5493,4346.3,4345.7,3.2078]
[1756780608943,0.25,4346.3,4345.7,3.2078]
[1756780609742,0.2993,4346.2,4345.7,3.2078]
[1756780609944,0.2993,4346.0,4345.1,0.3023]
[1756780610146,0.4234,4346.0,4345.1,0.3023]
[1756780610346,0.2993,4345.5,4344.6,0.3023]
[1756780610546,3.19758775,4344.9,4343.8,3.2078]
[1756780610751,3.2078,4344.5,4343.6,0.3023]
[1756780610952,3.19758775,4344.3,4343.6,0.3023]
[1756780611248,0.2993,4344.1,4343.6,0.3023]
[1756780611448,0.2993,4344.1,4343.3,3.2078]
[1756780612349,3.19758775,4343.7,4343.3,3.2078]
[1756780612546,3.19758775,4343.7,4342.8,0.3023]
[1756780612547,0.25,4343.6,4342.8,0.3023]
[1756780612746,0.2993,4343.5,4342.8,0.3023]
[1756780613051,0.1241,4343.5,4342.5,3.2078]
[1756780613255,3.19758775,4343.1,4342.5,3.2078]
[1756780613550,3.19758775,4343.1,4342.4,0.3023]
[1756780613551,0.2993,4342.9,4342.4,0.3023]
[1756780613856,0.2993,4342.9,4341.9,0.3023]
[1756780614251,0.2993,4342.4,4341.8,3.2078]
[1756780614452,0.2993,4342.2,4341.8,3.2078]
[1756780614659,0.2993,4342.2,4341.1,0.25]
[1756780614660,0.2993,4341.8,4341.2,3.2078]
[1756780614849,0.2993,4341.5,4340.6,3.2078]
[1756780615158,0.2993,4341.2,4340.6,3.2078]
[1756780615355,0.25,4341.1,4340.6,3.2078]
[1756780615658,0.2993,4341.0,4340.6,3.5101]
[1756780615849,0.2993,4341.0,4340.6,3.2078]
[1756780616050,0.1149,4341.7,4340.7,0.3023]
[1756780616051,0.25,4340.9,4340.7,0.3023]
[1756780616349,0.25,4341.1,4340.7,0.3023]
[1756780616751,0.25,4341.1,4340.6,3.2078]
[1756780617055,0.2993,4341.6,4340.7,0.3023]
[1756780617356,0.25,4341.5,4340.7,0.3023]
[1756780618351,3.49688775,4341.4,4340.7,0.3023]
[1756780618557,6.70468775,4341.4,4340.7,0.3023]
[1756780618756,0.2993,4340.7,4340.6,3.2078]
[1756780619357,0.2993,4340.7,4340.2,0.3023]
[1756780619358,0.2993,4340.7,4340.1,3.2078]
[1756780619760,0.25,4340.6,4340.2,0.3023]
[1756780620056,0.2993,4340.5,4340.2,0.3023]
[1756780620264,0.2993,4340.7,4339.6,3.2078]
[1756780620557,0.1241,4341.0,4339.5,0.3023]
[1756780620558,0.2993,4340.1,4339.5,0.3023]
[1756780620753,0.25,4340.0,4339.1,44.0078]
[1756780620951,0.25,4340.0,4339.2,0.3023]
[1756780621150,0.2993,4339.9,4339.7,3.2078]
[1756780621357,0.2993,4339.9,4339.2,3.5101]
[1756780621756,3.49688775,4339.9,4339.2,3.5101]
[1756780622163,6.70468775,4339.9,4339.2,3.5101]
[1756780622352,0.2993,4339.8,4339.2,3.5101]
[1756780622553,0.2993,4339.8,4339.2,0.3023]
[1756780622855,0.2993,4339.8,4338.7,3.2078]
[1756780623058,0.2993,4339.8,4338.8,0.3023]
[1756780624855,0.25,4339.7,4338.8,0.3023]
[1756780625051,3.5071,4339.6,4338.8,0.3023]
[1756780625256,0.2993,4338.8,4338.4,0.3023]
[1756780625556,3.19758775,4338.9,4338.1,3.2078]
[1756780625557,0.2993,4338.6,4338.1,3.2078]
[1756780625962,3.2078,4339.1,4338.2,0.3023]
[1756780626258,0.2993,4339.3,4338.4,3.5101]
[1756780626259,0.25,4338.5,4338.4,3.5101]
[1756780626462,0.2993,4339.3,4338.4,3.2078]
[1756780626654,0.25,4339.2,4338.5,0.3023]
[1756780627361,0.2993,4339.3,4338.5,0.3023]
[1756780627555,0.25,4339.2,4338.5,0.3023]
[1756780627751,0.2993,4339.3,4338.5,0.3023]
[1756780627956,0.25,4339.2,4338.5,0.3023]
[1756780628353,0.2993,4339.3,4338.5,0.3023]
[1756780628553,0.249,4339.2,4338.5,0.3023]
[1756780629553,0.2993,4339.3,4338.5,0.3023]
[1756780629760,0.249,4339.2,4338.9,3.2078]
[1756780629960,0.2993,4339.1,4338.6,0.3023]
[1756780630158,0.2993,4339.1,4338.4,3.5101]
[1756780630462,0.249,4339.0,4338.5,0.3023]
[1756780630664,0.2993,4339.5,4338.5,0.3023]
[1756780630865,0.249,4339.4,4338.5,0.3023]
[1756780631062,0.2993,4339.3,4338.5,0.3023]
[1756780631464,3.51068775,4339.1,4338.5,0.3023]
[1756780633462,0.249,4339.0,4338.5,0.3023]
[1756780633769,0.249,4339.0,4338.5,0.3022]
[1756780633964,0.5621,4339.0,4338.4,3.51]
[1756780634362,0.3131,4339.0,4338.4,3.51]
[1756780634562,3.3228,4339.2,4338.5,0.3022]
[1756780634761,0.249,4339.1,4338.6,0.3022]
[1756780635162,0.115,4339.2,4338.6,0.3022]
[1756780635457,0.249,4339.1,4339.0,3.51]
[1756780636063,0.3131,4339.1,4339.0,0.3022]
[1756780636464,0.115,4339.2,4338.5,0.3022]
[1756780636665,0.248,4339.1,4338.5,0.3022]
[1756780638862,0.3131,4339.0,4338.5,0.3022]
[1756780639063,3.44558775,4339.1,4338.5,0.3022]
[1756780639664,0.3131,4339.0,4338.5,0.3022]
[1756780639964,0.3131,4339.0,4338.1,0.3022]
[1756780641069,0.248,4338.9,4338.5,3.2078]
[1756780641569,0.248,4339.0,4338.6,0.3022]
[1756780642162,0.3131,4338.9,4338.1,0.3022]
[1756780644264,0.115,4338.8,4338.2,0.80984315]
[1756780645273,0.3131,4338.7,4338.1,0.3022]
[1756780645871,0.7248,4338.7,4338.6,0.2097]
[1756780647468,0.7248,4338.7,4338.1,1.11204315]
[1756780648175,0.7248,4338.7,4338.2,0.80984315]
[1756780648367,0.115,4338.8,4338.3,0.3022]
[1756780648566,0.5227,4338.4,4338.3,0.708]
[1756780648772,0.7697,4338.4,4338.3,0.708]
[1756780649270,0.7697,4338.4,4338.3,1.51784315]
[1756780649475,0.115,4338.8,4338.3,1.21564315]
[1756780649674,0.115,4338.8,4338.1,1.21766893]
[1756780649675,0.7697,4338.7,4338.6,0.708]
[1756780649877,0.9718,4338.7,4338.6,0.708]
[1756780650569,0.9718,4338.7,4338.6,0.2097]
[1756780652579,0.115,4338.8,4338.7,0.708]
[1756780653170,0.8398,4338.8,4338.7,1.51784315]
[1756780653578,0.8398,4338.8,4338.7,1.21564315]
[1756780654071,1.0868,4338.8,4338.5,0.80984315]
[1756780654276,0.7248,4338.5,4338.4,0.80984315]
[1756780654475,0.3131,4338.4,4338.2,0.80984315]
[1756780654670,0.4117,4338.3,4338.2,0.80984315]
[1756780654873,0.3131,4338.2,4338.0,4.31984315]
[1756780655074,0.4117,4338.2,4338.1,0.2097]
[1756780655274,0.7248,4338.2,4338.1,0.2097]
[1756780657469,0.7248,4338.2,4338.1,0.708]
[1756780657673,0.7248,4338.2,4338.1,0.2097]
[1756780658573,0.7248,4338.2,4338.1,0.4058]
[1756780658977,0.4117,4338.2,4338.0,3.2078]
[1756780659186,0.7248,4338.1,4338.0,3.2078]
[1756780659878,1.21450435,4338.1,4338.0,3.4175]
[1756780660275,3.78314995,4338.1,4337.3,3.2078]
[1756780660476,0.7248,4337.4,4337.3,3.4175]
[1756780660677,0.246,4337.5,4337.3,3.9158]
[1756780660877,0.5227,4337.8,4337.7,0.708]
[1756780661079,1.25829783,4337.8,4337.7,0.708]
[1756780661487,1.46039783,4337.8,4337.7,0.708]
[1756780662181,0.7031,4337.4,4337.3,3.8968]
[1756780662981,0.9491,4337.4,4337.3,3.2078]
[1756780663383,1.44854237,4337.4,4337.3,3.2078]
[1756780664082,0.9491,4337.4,4337.3,3.2078]
[1756780664286,0.9491,4337.4,4337.3,3.405]
[1756780664587,0.9491,4337.4,4337.3,3.8968]
[1756780664780,0.7031,4337.4,4337.3,3.8968]
[1756780664979,0.245,4337.4,4337.3,3.8968]
[1756780665478,0.9481,4337.4,4337.3,3.8968]
[1756780666080,0.245,4337.4,4337.3,3.8968]
[1756780666476,0.4389,4337.4,4337.3,3.8968]
[1756780666689,0.7545,4337.4,4337.3,3.8968]
[1756780667587,0.9481,4337.4,4337.3,3.8968]
[1756780667884,0.9481,4337.4,4337.3,3.405]
[1756780668184,0.9481,4337.4,4337.3,3.2078]
[1756780669192,0.3156,4337.3,4336.6,3.499]
[1756780669385,0.7031,4336.7,4336.6,3.8968]
[1756780669588,0.9481,4336.7,4336.6,3.8968]
[1756780670488,0.245,4336.7,4336.6,3.8968]
[1756780671989,0.4389,4336.7,4336.6,3.8968]
[1756780672187,0.9481,4336.7,4336.6,3.8968]
[1756780672678,0.9481,4336.7,4336.6,3.6056]
[1756780672878,0.9481,4336.7,4336.6,0.3978]
[1756780674182,0.9481,4336.7,4336.6,0.1972]
[1756780675089,0.9481,4336.7,4336.2,0.2912]
[1756780675285,3.5848456,4336.3,4336.2,0.689]
[1756780675488,0.7031,4336.1,4336.0,3.405]
[1756780675692,0.7031,4336.1,4336.0,3.8968]
[1756780675884,3.1257456,4336.3,4336.2,0.3978]
[1756780675885,2.8817456,4336.3,4336.2,0.3978]
[1756780676190,3.1257456,4336.3,4336.2,0.689]
[1756780676792,3.3196456,4336.3,4336.2,0.689]
[1756780677192,3.0756456,4336.3,4336.2,0.689]
[1756780677391,3.6352456,4336.3,4336.2,0.689]
[1756780677695,3.3912456,4336.3,4336.2,0.689]
[1756780677895,3.6352456,4336.3,4336.2,0.689]
[1756780678191,3.6352456,4336.3,4336.0,3.405]
[1756780678192,0.7031,4336.1,4336.0,3.405]
[1756780678591,0.7031,4336.1,4336.0,3.6056]
[1756780678889,0.7031,4336.1,4336.0,3.8968]
[1756780679292,0.7031,4336.1,4336.0,3.6056]
[1756780679495,0.7031,4336.1,4336.0,3.2078]
[1756780680084,0.7031,4336.1,4336.0,3.405]
[1756780680888,0.7031,4336.1,4335.7,0.2912]
[1756780681091,0.7031,4336.1,4335.4,3.2078]
[1756780681092,0.5095,4335.5,4335.4,3.8968]
[1756780681296,0.9471,4335.5,4335.4,3.8968]
[1756780681492,0.244,4335.5,4335.4,3.8968]
[1756780682094,0.4379,4335.5,4335.4,3.8968]
[1756780682296,0.244,4335.5,4335.4,3.8968]
[1756780682799,0.1939,4335.6,4335.5,0.689]
[1756780683000,0.9471,4335.6,4335.5,0.689]
[1756780683200,0.9471,4335.6,4335.5,0.3978]
[1756780683492,0.9471,4335.6,4335.5,0.689]
[1756780683698,0.1939,4335.6,4335.5,0.689]
[1756780683900,0.4379,4335.6,4335.5,0.689]
[1756780684299,0.244,4335.6,4335.5,0.689]
[1756780684897,2.8817456,4335.8,4335.6,0.2912]
[1756780685094,2.8817456,4335.8,4335.7,0.689]
[1756780685295,3.1257456,4335.8,4335.7,0.689]
[1756780687097,3.1973456,4336.2,4335.7,0.689]
[1756780687400,3.9109,4336.6,4336.5,0.689]
[1756780687606,1.22247659,4337.9,4336.6,0.2912]
[1756780687607,0.3156,4337.0,4336.6,0.2912]
[1756780687801,0.5095,4337.0,4336.9,0.689]
[1756780688306,0.9471,4337.0,4336.9,0.689]
[1756780688898,0.3156,4336.9,4336.4,3.499]
[1756780689101,0.3875,4336.1,4335.7,3.2078]
[1756780689298,3.0003456,4336.5,4335.7,3.2078]
[1756780689299,3.5848456,4335.8,4335.7,3.2078]
[1756780689603,3.5848456,4335.8,4335.3,0.2912]
[1756780689604,3.8288456,4335.8,4335.3,0.2912]
[1756780690100,3.8288456,4335.8,4335.0,3.2078]
[1756780690101,3.2692456,4335.8,4335.7,0.689]
[1756780690497,3.8278456,4335.8,4335.7,0.1972]
[1756780690693,0.7031,4335.1,4335.0,3.6056]
[1756780690896,3.8278456,4335.1,4335.0,3.8968]
[1756780691605,3.2078,4336.2,4335.4,0.6952]
[1756780691606,0.2069,4335.5,4335.4,0.6952]
[1756780691796,0.9449,4335.5,4335.0,3.5193]
[1756780692099,0.7009,4335.4,4335.3,0.6952]
[1756780692498,0.9449,4335.4,4335.3,0.6952]
[1756780692901,0.9449,4335.4,4335.3,0.3837]
[1756780693104,0.9449,4335.4,4335.3,0.1902]
[1756780693503,0.9449,4335.4,4335.3,0.6952]
[1756780696799,2.9967456,4335.6,4335.4,0.3115]
[1756780697094,0.243,4335.5,4335.4,0.6952]
[1756780697900,0.7482,4335.5,4335.4,0.6952]
[1756780698807,0.9439,4335.5,4335.4,0.3837]
[1756780698999,0.9439,4335.5,4335.4,0.1902]
[1756780699199,0.2069,4335.1,4335.0,3.903]
[1756780699405,0.9439,4335.1,4335.0,3.903]
[1756780699607,3.8256456,4335.1,4335.0,3.5915]
[1756780700200,3.8256456,4335.1,4335.0,3.903]
[1756780700799,3.8256456,4335.1,4335.0,3.5915]
[1756780700999,3.8256456,4335.1,4335.0,3.903]
[1756780701196,3.8256456,4335.1,4335.0,3.5915]
[1756780701908,3.8256456,4335.1,4335.0,3.398]
[1756780702612,3.5826456,4335.1,4335.0,3.903]
[1756780702911,3.8256456,4335.1,4335.0,3.903]
[1756780703608,3.8256456,4335.1,4335.0,3.398]
[1756780704002,3.8256456,4335.1,4335.0,3.903]
[1756780704506,3.8256456,4335.1,4335.0,3.5915]
[1756780705010,3.8256456,4335.1,4335.0,3.903]
[1756780708211,0.1151,4335.3,4335.1,0.3115]
[1756780708407,0.3571,4335.3,4335.2,0.6952]
[1756780709515,0.8623,4335.3,4335.2,0.6952]
[1756780709711,1.058,4335.3,4335.2,0.1902]
[1756780709917,0.7009,4335.2,4335.1,0.1902]
[1756780710712,0.7009,4335.2,4335.1,0.6952]
[1756780711522,1.89865666,4335.2,4335.1,0.6952]
[1756780711711,0.1151,4335.3,4335.2,0.3115]
[1756780711917,0.1151,4335.3,4335.2,0.6952]
[1756780713713,0.2983,4335.2,4335.0,3.2078]